{"text_format":"1","workbook":"xlsx","n_sheets":2,"sheets":["Données_Asac","Saisie Inscription"],"not_rendered":{"charts":0,"images":1,"macros":1,"external_links":0,"defined_names":133,"comments":1,"pivot_tables":0},"unopened":[],"bounds":{"document_bytes":16777216,"sheet_cells":100000,"rows_first":2000,"rows_last":500,"rows_between":2000,"halvings":0,"cell_chars":16384,"cell_head_chars":4096},"cells_cut":0,"cells_raw":0,"read":"whole","date_system":"1900"}

{"sheet":"Données_Asac","index":0,"n_rows":33,"n_cols":3,"rows_kept":33,"cut":false,"hidden":true,"merged":[[3,1,3,2],[11,1,11,2]]}
[]
[]
[]
[null,"Cotisation Section Voile"]
[null,"A renseigner",0]
[null,"NOKIA Adulte",14]
[null,"NOKIA Enfant (Age < 15 ans)",0]
[null,"NOKIA Enfant (15 ans <= Age < 18 ans)",7]
[null,"EXTERIEUR Adulte",20]
[null,"EXTERIEUR Enfant (Age < 18 ans)",10]
[]
[null,"Divers Tarifs"]
[null,"Carte ASAC",3]
[null,"Supplément extérieur /j",10]
[null,"Avance Réservation",100]
[null,"Forfait Bouteille de Gaz",12]
[null,"Location Bateau par jour",50]
[null,"Nombre de jour de Location",7]
[]
[null,"Semaine de réservation",1]
[null,"Semaine 25 "]
[null,"Semaine 26 "]
[null,"Semaine 27"]
[null,"Semaine 28"]
[null,"Semaine 29"]
[null,"Semaine 30"]
[null,"Semaine 31"]
[null,"Semaine 32"]
[null,"Semaine 33"]
[null,"Semaine 34"]
[null,"Semaine 35"]
[null,"Semaine 36"]
[null,"Semaine 37"]

{"sheet":"Saisie Inscription","index":1,"n_rows":42,"n_cols":12,"rows_kept":42,"cut":false,"hidden":false,"merged":[[38,4,38,7],[11,1,12,1],[11,2,12,2],[10,7,10,11],[10,4,12,4],[10,5,12,5],[11,7,12,7],[11,8,12,8],[25,7,25,11],[13,1,13,2],[9,1,9,5],[10,1,10,2],[11,9,12,9],[11,10,12,10],[11,11,12,11],[15,1,15,2],[15,3,15,11],[10,3,12,3]]}
[]
[]
[]
[]
[]
[]
[null,"Semaine RESERVATION"]
[]
[]
[null,"PARTIE à RENSEIGNER"]
[null,"EQUIPAGE",null,"N° Carte ASAC","Section VOILE ?","STATUS",null,"DETAIL / Equipier"]
[null,"Nom","Prénom",null,null,null,null,"Carte ASAC (€)","Cotisation\nSection (€)","Location bateau (€)","Supplément Extérieur","Total (€)"]
[]
[null,"CHEF DE BORD"]
[null,null,null,null,false," ",1,{"$f":"PRODUCT(IF(ISBLANK(B15),0,Données_Asac!$C$13),ISBLANK(D15))","v":0},{"$f":"IF(E15,0,INDEX(Données_Asac!B5:C10,G15,2))","v":0},{"$f":"IF(C26=0,0,PRODUCT(PRODUCT(Données_Asac!C18,Données_Asac!C17)/C26,IF(ISBLANK(B15),0,1)))","v":0},{"$f":"PRODUCT(Données_Asac!C18,Données_Asac!C14,SUM(EXACT(EA,INDEX(Données_Asac!B5:C10,G15,1)),EXACT(EA_18,INDEX(Données_Asac!B5:C10,G15,1))))","v":0},{"$f":"SUM(H15:K15)","v":0}]
[null,"EQUIPIERS"]
[null,null,null,null,false,null,1,{"$f":"PRODUCT(IF(ISBLANK(B17),0,Données_Asac!$C$13),ISBLANK(D17))","v":0},{"$f":"IF(E17,0,INDEX(Données_Asac!B5:C10,G17,2))","v":0},{"$f":"IF(C26=0,0,PRODUCT(PRODUCT(Données_Asac!C18,Données_Asac!C17)/C26,IF(ISBLANK(B17),0,1)))","v":0},{"$f":"PRODUCT(Données_Asac!C18,Données_Asac!C14,SUM(EXACT(EA,INDEX(Données_Asac!B5:C10,G17,1)),EXACT(EA_18,INDEX(Données_Asac!B5:C10,G17,1))))","v":0},{"$f":"SUM(H17:K17)","v":0}]
[null,null,null,null,false,null,1,{"$f":"PRODUCT(IF(ISBLANK(B18),0,Données_Asac!$C$13),ISBLANK(D18))","v":0},{"$f":"IF(E18,0,INDEX(Données_Asac!B5:C10,G18,2))","v":0},{"$f":"IF(C26=0,0,PRODUCT(PRODUCT(Données_Asac!C18,Données_Asac!C17)/C26,IF(ISBLANK(B18),0,1)))","v":0},{"$f":"PRODUCT(Données_Asac!C18,Données_Asac!C14,SUM(EXACT(EA,INDEX(Données_Asac!B5:C10,G18,1)),EXACT(EA_18,INDEX(Données_Asac!B5:C10,G18,1))))","v":0},0]
[null,null,null,null,false,null,1,{"$f":"PRODUCT(IF(ISBLANK(B19),0,Données_Asac!$C$13),ISBLANK(D19))","v":0},{"$f":"IF(E19,0,INDEX(Données_Asac!B5:C10,G19,2))","v":0},{"$f":"IF(C26=0,0,PRODUCT(PRODUCT(Données_Asac!C18,Données_Asac!C17)/C26,IF(ISBLANK(B19),0,1)))","v":0},{"$f":"PRODUCT(Données_Asac!C18,Données_Asac!C14,SUM(EXACT(EA,INDEX(Données_Asac!B5:C10,G19,1)),EXACT(EA_18,INDEX(Données_Asac!B5:C10,G19,1))))","v":0},0]
[null,null,null,null,false,null,1,{"$f":"PRODUCT(IF(ISBLANK(B20),0,Données_Asac!$C$13),ISBLANK(D20))","v":0},{"$f":"IF(E20,0,INDEX(Données_Asac!B5:C10,G20,2))","v":0},{"$f":"IF(C26=0,0,PRODUCT(PRODUCT(Données_Asac!C18,Données_Asac!C17)/C26,IF(ISBLANK(B20),0,1)))","v":0},{"$f":"PRODUCT(Données_Asac!C18,Données_Asac!C14,SUM(EXACT(EA,INDEX(Données_Asac!B5:C10,G20,1)),EXACT(EA_18,INDEX(Données_Asac!B5:C10,G20,1))))","v":0},0]
[null,null,null,null,false,null,1,{"$f":"PRODUCT(IF(ISBLANK(B21),0,Données_Asac!$C$13),ISBLANK(D21))","v":0},{"$f":"IF(E21,0,INDEX(Données_Asac!B5:C10,G21,2))","v":0},{"$f":"IF(C26=0,0,PRODUCT(PRODUCT(Données_Asac!C18,Données_Asac!C17)/C26,IF(ISBLANK(B21),0,1)))","v":0},{"$f":"PRODUCT(Données_Asac!C18,Données_Asac!C14,SUM(EXACT(EA,INDEX(Données_Asac!B5:C10,G21,1)),EXACT(EA_18,INDEX(Données_Asac!B5:C10,G21,1))))","v":0},0]
[null,null,null,null,false,null,1,{"$f":"PRODUCT(IF(ISBLANK(B22),0,Données_Asac!$C$13),ISBLANK(D22))","v":0},{"$f":"IF(E22,0,INDEX(Données_Asac!B5:C10,G22,2))","v":0},{"$f":"IF(C26=0,0,PRODUCT(PRODUCT(Données_Asac!C18,Données_Asac!C17)/C26,IF(ISBLANK(B22),0,1)))","v":0},{"$f":"PRODUCT(Données_Asac!C18,Données_Asac!C14,SUM(EXACT(EA,INDEX(Données_Asac!B5:C10,G22,1)),EXACT(EA_18,INDEX(Données_Asac!B5:C10,G22,1))))","v":0},0]
[null,null,null,null,false,null,1,{"$f":"PRODUCT(IF(ISBLANK(B23),0,Données_Asac!$C$13),ISBLANK(D23))","v":0},{"$f":"IF(E23,0,INDEX(Données_Asac!B5:C10,G23,2))","v":0},{"$f":"IF(C26=0,0,PRODUCT(PRODUCT(Données_Asac!C18,Données_Asac!C17)/C26,IF(ISBLANK(B23),0,1)))","v":0},{"$f":"PRODUCT(Données_Asac!C18,Données_Asac!C14,SUM(EXACT(EA,INDEX(Données_Asac!B5:C10,G23,1)),EXACT(EA_18,INDEX(Données_Asac!B5:C10,G23,1))))","v":0},0]
[null,null,null,null,false,null,1,{"$f":"PRODUCT(IF(ISBLANK(B24),0,Données_Asac!$C$13),ISBLANK(D24))","v":0},{"$f":"IF(E24,0,INDEX(Données_Asac!B5:C10,G24,2))","v":0},{"$f":"IF(C26=0,0,PRODUCT(PRODUCT(Données_Asac!C18,Données_Asac!C17)/C26,IF(ISBLANK(B24),0,1)))","v":0},{"$f":"PRODUCT(Données_Asac!C18,Données_Asac!C14,SUM(EXACT(EA,INDEX(Données_Asac!B5:C10,G24,1)),EXACT(EA_18,INDEX(Données_Asac!B5:C10,G24,1))))","v":0},0]
[null,null,null,null,false,null,1,{"$f":"PRODUCT(IF(ISBLANK(B25),0,Données_Asac!$C$13),ISBLANK(D25))","v":0},{"$f":"IF(E25,0,INDEX(Données_Asac!B5:C10,G25,2))","v":0},{"$f":"IF(C26=0,0,PRODUCT(PRODUCT(Données_Asac!C18,Données_Asac!C17)/C26,IF(ISBLANK(B25),0,1)))","v":0},{"$f":"PRODUCT(Données_Asac!C18,Données_Asac!C14,SUM(EXACT(EA,INDEX(Données_Asac!B5:C10,G25,1)),EXACT(EA_18,INDEX(Données_Asac!B5:C10,G25,1))))","v":0},0]
[null,"Nombre Personnes",{"$f":"SUM(IF(ISBLANK(B15),0,1),IF(ISBLANK(B17),0,1),IF(ISBLANK(B18),0,1),IF(ISBLANK(B19),0,1),IF(ISBLANK(B20),0,1),IF(ISBLANK(B21),0,1),IF(ISBLANK(B22),0,1),IF(ISBLANK(B23),0,1),IF(ISBLANK(B24),0,1),IF(ISBLANK(B25),0,1))","v":0},null,null,null,null,"TOTAL"]
[null,null,null,null,null,null,null,{"$f":"SUM(H15:H25)","v":0},{"$f":"SUM(I15:I25)","v":0},{"$f":"SUM(J15:J25)","v":0},{"$f":"SUM(K15:K25)","v":0},{"$f":"SUM(L15:L25)","v":0}]
[null,"Deux chèques à fournir"]
[null,"       Chèque 1",{"$f":"SUM(C30:C32)","v":0}]
[null,"Carte ASAC",{"$f":"H27","v":0}]
[null,"Cotisation Section VOILE",{"$f":"SUM(IF(E15,0,INDEX(Données_Asac!B5:C10,G15,2)),IF(E17,0,INDEX(Données_Asac!B5:C10,G17,2)),IF(E18,0,INDEX(Données_Asac!B5:C10,G18,2)),IF(E19,0,INDEX(Données_Asac!B5:C10,G19,2)),IF(E20,0,INDEX(Données_Asac!B5:C10,G20,2)),IF(E21,0,INDEX(Données_Asac!B5:C10,G21,2)),IF(E22,0,INDEX(Données_Asac!B5:C10,G22,2)),IF(E23,0,INDEX(Données_Asac!B5:C10,G23,2)),IF(E24,0,INDEX(Données_Asac!B5:C10,G24,2)),IF(E25,0,INDEX(Données_Asac!B5:C10,G25,2)))","v":0}]
[null,"Avance réservation (arrhes)",{"$f":"PRODUCT(IF(ISBLANK(B15),0,Données_Asac!C15))","v":0}]
[null,"       Chèque 2",{"$f":"SUM(C34:C36)-H35-H36-H37","v":0},null,"Fectures exceptionnelles (retirées du montant global)"]
[null,"Forfait bouteille de Gaz",{"$f":"PRODUCT(IF(ISBLANK(B15),0,Données_Asac!C16))","v":0},null,"Facture","Objet\n(Parebatage, Pompe WC, Pharma, ...)",null,"Montant \n(€)"]
[null,"Supplément extérieur",{"$f":"K27","v":0},null,"N°1"]
[null,"Solde réservation",{"$f":"J27-C32","v":0},null,"N°2"]
[null,null,null,null,"N°3"]
[]
[null,"TOTAL",{"$f":"SUM(C29,C33)","v":0},null,"Regle sur l'avance de reservation (Arrhes)"]
[null,null,null,null,"Annulation sans frais 1 mois avant la location"]
[null,null,null,null,"Arrhes remboursées si mauvaise météo (*)"]
[null,null,null,null,"(*) validation du bureau après demande su skipper"]